Cogmind - Beta 11 @@@ ROGUE MODE // 2022.03.24 @ 18:45:50 Player: Fleshy Vegetable Bird Result: Destroyed by G-34 Mercenary with Small Laser Performance ------------- Evolutions (0) 0 Regions Visited (2) 400 Robots Destroyed (32) 160 Value Destroyed (441) 441 Prototype IDs (2) 40 Alien Tech Used (0) 0 Bonus (25) 25 TOTAL SCORE: 1066 Bonus ------- Follower Combat Kills 25 Cogmind --------- Core Integrity 0/250 Matter 287/300 Energy 106/250 System Corruption 4% Temperature Warm (106) Movement Rolling (80) Location -10/Mines Parts ------- > --- POWER (1) -------- Ion Engine > --- PROPULSION (2) --- Wheel Wheel > --- UTILITY (2) ------ Small Storage Unit Targeting Computer > --- WEAPON (2) ------- Light Assault Rifle Mining Laser > --- INVENTORY (8) ---- Light Treads High-capacity Battery (250) Improved Terrain Scanner Transport Network Coupler Peak State ------------ > --- POWER ------------ Light Ion Engine > --- PROPULSION ------- Wheel Wheel > --- UTILITY ---------- Small Storage Unit Targeting Computer > --- WEAPON ----------- Light Assault Rifle Enhanced Flamer > --- INVENTORY -------- Light Treads High-capacity Battery Improved Terrain Scanner Transport Network Coupler Mining Laser Proton Bomb Trap Proton Bomb Trap Proton Bomb Trap [Rating: 10] Favorites ----------- Power Light Ion Engine Engine Light Ion Engine Propulsion Wheel Wheel Wheel Utility Small Storage Unit Storage Small Storage Unit Processor Targeting Computer Weapon Light Assault Rifle Energy Gun Medium Laser Ballistic Gun Light Assault Rifle Launcher Grenade Launcher Special Weapon Enhanced Flamer Build | -11 -10 -10 ------- Run | Scr Mat Min Slots Evolved . | . . . Power . | . . . Propulsion . | . . . Utility . | . . . Weapon . | . . . Parts Attached 28 | 6 13 9 Power 7 | 1 3 3 Engine 7 | 1 3 3 Core . | . . . Reactor . | . . . Propulsion 9 | 2 6 1 Treads . | . . . Leg . | . . . Wheel 9 | 2 6 1 Hover . | . . . Flight . | . . . Utility 3 | 1 2 . Device . | . . . Storage 1 | 1 . . Processor 2 | . 2 . Hackware . | . . . Protection . | . . . Artifact . | . . . Weapon 9 | 2 2 5 Energy Gun 2 | 1 1 . Energy Cannon . | . . . Ballistic Gun 2 | 1 . 1 Ballistic Cannon . | . . . Launcher 2 | . 1 1 Special Weapon 3 | . . 3 Impact Weapon . | . . . Slashing Weapon . | . . . Piercing Weapon . | . . . Special Melee Weapon . | . . . Unidentified Prototypes . | . . . Parts Lost 9 | . 5 4 Power 2 | . 1 1 Propulsion 3 | . 3 . Utility 1 | . 1 . Weapon 3 | . . 3 Highest Loss Streak 2 | . 2 2 To Critical Strikes . | . . . Average Slot Usage (%) 91 | . 89 93 Engine 12 | . 13 11 Wheel 26 | . 25 28 Storage 14 | . 14 14 Processor 9 | . 6 14 Energy Gun 11 | . 14 8 Ballistic Gun 7 | . 10 4 Launcher 3 | . 3 2 Special Weapon 4 | . . 10 Naked Turns . | . . . Heaviest Build 13 | 11 13 13 Greatest Support 26 | 26 26 20 Greatest Overweight (x) 1 | . 1 1 Average Overweight (x) . | . . . Largest Inventory Capacity 8 | 8 8 8 Average Capacity 7 | 7 8 8 Most Carried 8 | 6 8 8 Average Carried 6 | 3 6 7 Final Capacity 8 | 8 8 8 Final Carried 8 | 6 8 4 Class Distribution -------------------- 100% | Mutant Dominant Class ---------------- Mutant | -10/Materials Mutant | -10/Mines Resources | -11 -10 -10 ----------- Run | Scr Mat Min Matter Collected 637 | 272 216 149 Remotely . | . . . Salvage Created 743 | 104 457 182 Parts 60 | 8 34 18 Haulers Intercepted 2 | . 2 . Recyclers Shooed 1 | . 1 . Parts Field Recycled . | . . . Retrieved Matter . | . . . Parts Self-Destructed . | . . . Prevented . | . . . Kills | -11 -10 -10 ------- Run | Scr Mat Min Combat Hostiles Destroyed 17 | . 9 8 Guns 11 | . 9 2 Cannons 1 | . . 1 AOE 4 | . . 4 Classes Destroyed 9 | 2 7 . Worker 4 | . 4 . Builder 1 | . 1 . Tunneler 3 | 2 . 1 Hauler 2 | . 2 . Recycler 2 | 1 . 1 Operator 1 | . 1 . Watcher 2 | . 2 . Swarmer 11 | . 6 5 Grunt 6 | . 3 3 Best Kill Streak 4 | 2 4 3 Combat Bots Only 3 | . 3 3 Max Kills in Single Turn 3 | 1 3 2 Gunslinging . | . . . Exploded 2 | . . 2 Melee . | . . . Uniques/NPCs Destroyed . | . . . Combat | -11 -10 -10 -------- Run | Scr Mat Min Damage Taken 1044 | . 569 475 Core 252 | . 152 100 Absorbed by Shields . | . . . Core Remaining (%) 100 | 100 . . Volleys Fired 129 | 12 68 49 Largest 2 | 2 2 2 Hottest 120 | 70 70 120 Shots Fired 215 | 24 137 54 Gun 176 | 24 134 18 Cannon . | . . . Launcher 9 | . 3 6 Special 30 | . . 30 Kinetic 91 | 12 66 13 Thermal 108 | 12 66 30 Explosive 9 | . 3 6 Electromagnetic 7 | . 2 5 Robot Hit Streak 12 | 10 12 10 Robot Miss Streak 4 | 2 4 3 Penetration Max . | . . . Secondary Targets 2 | . 2 . Max Gunslinging Chain 1 | . 1 . Shots Hit Robots 137 | 17 87 33 Core Hits 50 | 5 29 16 Critical Kills . | . . . Critical Parts Destroyed . | . . . Critical Strikes 7 | 2 4 1 Burn 6 | 2 4 . Corrupt 1 | . . 1 Melee Attacks . | . . . Impact . | . . . Slashing . | . . . Piercing . | . . . Sneak Attacks . | . . . Combat Hostiles . | . . . Follow-up Attacks . | . . . Damage Inflicted 1996 | 195 1140 661 Guns 1275 | 195 952 128 Cannons . | . . . Explosions 493 | . 188 305 Melee . | . . . Ramming 5 | . . 5 Kinetic 484 | 68 320 96 Thermal 943 | 127 593 223 Explosive 493 | . 188 305 Electromagnetic 71 | . 39 32 Impact . | . . . Slashing . | . . . Piercing . | . . . Highest Corruption 4 | . 3 4 Average Corruption 3 | . 2 3 Corruption Purged . | . . . Corruption Blocked . | . . . Effects 16 | . 8 8 Message Errors 2 | . 1 1 Matter Fused 4 | . 1 3 Heat Flow Errors 4 | . 2 2 Energy Discharges 2 | . 1 1 Parts Rejected 2 | . 1 1 Data Loss (minor) 1 | . 1 . Misfires 1 | . 1 . Overload Shots . | . . . Overflow Damage 11 | . 9 2 Projectiles 2 | . . 2 Explosions 9 | . 9 . Melee . | . . . Knockbacks . | . . . Impact . | . . . Kinetic . | . . . Secondary . | . . . Self-Inflicted Damage 79 | . . 79 Shots 2 | . . 2 Rammed 1 | . . 1 Targets Rammed 1 | . . 1 Kicked . | . . . Crushed . | . . . Highest Temperature 292 | 40 278 292 Average Temperature 77 | 20 90 66 Received Heat Transfer 363 | . 219 144 Siege Activations . | . . . Robots Corrupted . | . . . Combat Hostiles . | . . . Parts Fried . | . . . Impact Corruptions . | . . . Robots Melted 1 | . . 1 Combat Hostiles 1 | . . 1 Parts Melted 11 | . 5 6 Heat Transferred 3823 | 518 2035 1270 Parts Sabotaged . | . . . Parts Stolen . | . . . Parts Stripped . | . . . Power Chain Reactions . | . . . Missiles Intercepted . | . . . Alert | -11 -10 -10 ------- Run | Scr Mat Min Peak Influence 310 | 15 251 310 Initial 45 | . 9 45 Average 148 | 4 128 197 Maximum Alert Level 1 | . 1 1 Low Security (%) 69 | 100 79 51 Level 1 30 | . 20 48 Level 2 . | . . . Level 3 . | . . . Level 4 . | . . . Level 5 . | . . . High Security . | . . . Max Security . | . . . Squads Dispatched 1 | . 1 . Investigation . | . . . Extermination . | . . . Reinforcement 1 | . 1 . Assault . | . . . Garrison . | . . . Intercept . | . . . Searches Triggered . | . . . Construction Impeded . | . . . Haulers Reinforced . | . . . Active Scanning Responses . | . . . Cargo Convoy Interrupts . | . . . Stealth | -11 -10 -10 --------- Run | Scr Mat Min Distress Signals 1 | . 1 . Communications Jammed . | . . . Distress Signals . | . . . Times Spotted 38 | . 21 17 Peak Tracking Total 4 | . 4 3 Tactical Retreats 10 | . 5 5 Traps | -11 -10 -10 ------- Run | Scr Mat Min Traps Triggered 2 | . 2 . Indirectly . | . . . Trap Hack Attempts . | . . . Triggered . | . . . Disarmed . | . . . Reprogrammed . | . . . Reused 3 | . . 3 Traps Extracted . | . . . Installed 4 | . . 4 Triggered 3 | . . 3 Most Traps Carried 3 | . . 3 Machines | -11 -10 -10 ---------- Run | Scr Mat Min Machines Disabled 2 | . . 2 Max in Single Turn 2 | . . 2 Machines Sabotaged . | . . . Garrisons Compromised . | . . . Overloaded Fab Kills . | . . . Hacking | -11 -10 -10 --------- Run | Scr Mat Min Machines Accessed 7 | . 7 . Terminals 7 | . 7 . Fabricators . | . . . Repair Stations . | . . . Recycling Units . | . . . Scanalyzers . | . . . Garrison Access . | . . . Total Hacks 21 | . 21 . Successful 14 | . 14 . Failed 7 | . 7 . Catastrophic 1 | . 1 . Database Lockouts . | . . . Manual 21 | . 21 . Terminals 21 | . 21 . Fabricators . | . . . Repair Stations . | . . . Recycling Units . | . . . Scanalyzers . | . . . Garrison Access . | . . . Terminal Hacks 4 | . 4 . Part Schematic 2 | . 2 . Prototype ID Bank 1 | . 1 . Terminal Index 1 | . 1 . Fabricator Hacks . | . . . Repair Station Hacks . | . . . Recycling Unit Hacks . | . . . Scanalyzer . | . . . Garrison Access Hacks . | . . . Unauthorized Hacks 10 | . 10 . Terminals 10 | . 10 . Track 2 | . 2 . Botnet 6 | . 6 . Disrupt 1 | . 1 . Operators 1 | . 1 . Fabricators . | . . . Repair Stations . | . . . Recycling Units . | . . . Scanalyzers . | . . . Garrison Access . | . . . Data Cores Recovered . | . . . Used . | . . . Hacking Detections 7 | . 7 . Full Trace Events . | . . . Feedback Events . | . . . Feedback Blocked . | . . . Robot Schematics Acquired . | . . . Robots Built . | . . . Authchips . | . . . Time . | . . . Total Robot Build Rating . | . . . Part Schematics Acquired 2 | . 2 . Parts Built . | . . . Authchips . | . . . Time . | . . . Total Part Build Rating . | . . . Parts Repaired . | . . . Time . | . . . Parts Recycled . | . . . Recycled Matter . | . . . Retrieved Matter . | . . . Retrieved Components . | . . . Parts Scanalyzed . | . . . Part Schematics Acquired . | . . . Parts Damaged . | . . . Bothacking | -11 -10 -10 ------------ Run | Scr Mat Min Used RIF Installer . | . . . Robots Hacked . | . . . Non-combat . | . . . Combat . | . . . Robot Hacks Applied . | . . . Relay Couplers Released . | . . . Fabnet Peak Effective % . | . . . Robots Rewired 1 | . . 1 Allies Hacked . | . . . Hacks Repelled . | . . . Allies | -11 -10 -10 -------- Run | Scr Mat Min Total Allies 1 | . . 1 Largest Group 1 | . . 1 Highest-Rated Group 8 | . . 8 Highest-Rated Ally 8 | . . 8 Total Orders . | . . . Ally Attacks 4 | . . 4 Total Damage 34 | . . 34 Kills 1 | . . 1 Allies Corrupted . | . . . Allies Melted . | . . . Intel | -11 -10 -10 ------- Run | Scr Mat Min Robot Analysis Total . | . . . Derelict Logs Recovered 1 | . . 1 Drone Launches . | . . . Drone Recoveries . | . . . Exploration | -11 -10 -10 ------------- Run | Scr Mat Min Turns Passed 1731 | 110 914 707 Spaces Moved 1258 | 71 787 400 Core 10 | 10 . . Treads . | . . . Legs . | . . . Wheels 1248 | 61 787 400 Hover . | . . . Flight . | . . . Fastest Speed 50 | 50 80 80 Average Speed 81 | 82 81 80 Slowest Speed 95 | 90 95 95 Overloaded Moves . | . . . Propulsion Burnouts . | . . . Robots Hopped . | . . . Cave-ins Triggered . | . . . Exploration Rate (%) 46 | 3 95 42 Regions Visited 2 Branch Regions 1 Pre-discovered Areas . | . . . Known Exits Taken . | . . . Unknown Exits Taken 2 | 1 1 . Scrap Searched . | . . . Spaces Dug . | . . . Terrain Destroyed 49 | . 19 30 Melee . | . . . Projectile 2 | . . 2 AOE 47 | . 19 28 Terrain Rammed . | . . . Walls Destroyed . | . . . Machines Disabled . | . . . Actions | -11 -10 -10 --------- Run | Scr Mat Min Total 1739 | 100 940 699 Wait 254 | . 44 210 Move 1256 | 70 786 400 Hop . | . . . Pick Up 44 | 12 19 13 Fast Attach . | . . . Attach 19 | 6 8 5 Detach . | . . . Swap 9 | . 5 4 Drop 22 | . 10 12 Fire 129 | 12 68 49 Melee . | . . . Ram 1 | . . 1 Kick . | . . . Crush . | . . . Escape Stasis . | . . . Rewire 1 | . . 1 Trap 4 | . . 4 Miscellaneous . | . . . Route ------- -11/Scrapyard -10/Materials (discovered 5 exits: [*Mat x3] / [*Min x2]) -10/Mines History --------- Turn | Location | Event 15 | -11/Scrapyard | Discovered new exit (range 15) 111 | -11/Scrapyard | Entered Materials 232 | -10/Materials | Discovered new exit (range 15) 304 | -10/Materials | Build established: Mutant 385 | -10/Materials | Core integrity fell below 50% 478 | -10/Materials | Discovered new exit (range 3) 557 | -10/Materials | Discovered new exit (range 14) 567 | -10/Materials | Discovered new exit (range 13) 822 | -10/Materials | Discovered new exit (range 9) 1025 | -10/Materials | Entered Mines 1038 | -10/Mines | Learned location of 2 exits from Materials 1045 | -10/Mines | A weapon hastily lodged in a ceiling crevice suddenly fell to the ground 1063 | -10/Mines | Excavation squad dispatched 1063 | -10/Mines | A large section of the Mines collapsed 1224 | -10/Mines | Found a hidden stash of uninstalled traps 1313 | -10/Mines | Excavation squad dispatched 1563 | -10/Mines | Excavation squad dispatched 1568 | -10/Mines | Core integrity fell below 20% 1732 | -10/Mines | Destroyed by G-34 Mercenary with Small Laser Last Messages --------------- 01569_ Enh. Flamer destroyed. 01572_ U-05 Engineer lays Concrete. 01579_ Lgt. Ion Engine destroyed. 01581_ Heat Sink melted. 01581_ G-34 Mercenary destroyed. 01590_ K-01 Serf collects debris. 01599_ Dropped Proton Bomb Trap. 01600_ Installed Proton Bomb Trap. 01601_ G-34 Mercenary triggered Proton Bomb Trap. 01601_ A bubble of electromagnetic force engulfs the area. 01605_ Dropped Proton Bomb Trap. 01606_ Installed Proton Bomb Trap. 01628_ K-01 Serf collects debris. 01665_ System corrupted: Matter fused (-5). 01684_ Acquired 18 matter. 01693_ Acquired Corrupted Sml. Laser. 01696_ Dropped Corrupted Sml. Laser. 01715_ Acquired Ion Engine. 01719_ R-06 Scavenger destroyed. 01720_ K-01 Serf collects debris. Map ----- +----------------------------------------------------+ | ???????????????????????#### #* ###?# ##?? | | ???????????????????????# = =[ #?# ##? | | ???????????????????????# "" " #?#### #? | | ???????????????????????# " #????## #? | | ???????????????????????# " " #?????## = ##? | | ???????????????????????# #?####?## ###?? | | ???????????????????????# ### ##?## ##???? | | ???????????????????????# ## #### #????? | | ???????????????????????##### ## ### #### #????? | | ??????????????????????????## ###### === #????? | | ??????????????????????????## ##?## *|## ##????? | | ???????????????????????????# ##?# ## #??#### | | ???????????????????????????# #??# ## #### # | | ??????????????# #######????# #??## ### | | ??????????????# #????# #???## ######## | | ??????????????####### #????# ##??## ###??????# | | ????????????????????# #????# #??## ##???????# | | ????????????????????# #????## #??## ##?####### | | ????????????????????#^#####?# #??##[#### ## | | ????????????????????# #?# #???#*### | | ????????????????????##### #?# #???#=## | | ??????????????????####;## ### #####%## # ## | | ?????????????????## ## ## !=[= !### ## #? | | ?????????????????# [#=## ########?## #### ## | | ?????????????????# *%%k!t #?????????####??# ## | | ?????????????????## % *g@= #???????????????# # | | ????####??????????##!#########???????????????# | | ???## ##??#######?# ##?????????????????????# """ | | ??## #### ### #??????????????????????# """ | | ??# ####??????????????????????# """ | | ??# #??????????????????????## | | ??# #???????????????????????## | | ??# # # ####?????????????????????#### | | ??# #???????????????????????? | | ??# # #???????????????????????? | | ??## ##### # ####### ??????????????????????? | | ???# #????# #####???????###?????????????????????? | | ???# ?????# #???????????????????????????????????? | | ??? ?????# #???????????????????????????????????? | | ?? ##?????# #???????????????????????????????????? | | ? ???????# #######?###?????????????????????????? | | # ????????# ## ##????????????????????????? | | ? ????????# #????????????????????????? | | #?????????###### #????????????????????????? | | ???????????????# #????????????????????????? | | ???????????????# ##????????????????????????? | | ??????????????## """ ###???????????????????????? | | ?????????????## """ ??????????????????????? | | ?????????????# """ #####?????????????????????? | | ????????????# ##?????????????????????????? | +----------------------------------------------------+ Best States ------------- Heat Dissipation 25 Energy Generation 10 Energy Capacity 250 Matter Stores 300 Matter Capacity 300 Sight Range 16 Terrain Scan Density 10 Evasion (%) 44 Targeting Accuracy 5 Item Schematics ----------------- Wheel | -10/Materials | Hacked Lrg. Storage Unit | -10/Materials | Hacked Robot Schematics ------------------ None Fabricated ------------ Nothing Alien Tech Used ----------------- None Achievements -------------- None Challenges ------------ None Game ------ Seed WeldingBarrageProtomatter Manual? 0 Play Time 00:18:15 Cumulative 312.3 hours Start 2022.03.24 @ 18:27:57 End 2022.03.24 @ 18:45:50 Sessions 1 Manual Loads 0 Difficulty Rogue Special Mode None Game No. 351 Rogue 351 Adventurer 0 Explorer 0 Win Type - Total 6 Types 3/1/1/1/0/0/0/0/0 Lore% 63 Gallery% 78 Achievement% 66 Wizard Run 0 Options --------- ASCII 0 Keyboard 0 Movement Numpad Keybinds 0 Fullscreen 1 Font 16/Terminus Map View 75x55 Tactical HUD 1 Map Filters NONE Filters NONE Steam 1 RUN: 374a4654-f173-450f-9c75-7bb62a88c562